[Event "*** SCC Grand Prix: Titled Tuesday Blitz"]
[Site "Chess.com"]
[Date "2020.08.04"]
[Round "1"]
[White "louis198"]
[Black "Yoshikrov"]
[Result "1/2-1/2"]
[WhiteElo "2529"]
[BlackElo "2146"]
[TimeControl "180+1"]
[EndTime "13:52:44 PDT"]
[Termination "Game drawn - insufficient material"]

1. d4 {[%clk 0:02:58.7]} 1... Nf6 {[%clk 0:02:58.3]} 2. Bf4 {[%clk 0:02:58.1]}
2... d5 {[%clk 0:02:55.5]} 3. e3 {[%clk 0:02:57.2]} 3... c5 {[%clk 0:02:55.6]}
4. Nd2 {[%clk 0:02:52]} 4... Nc6 {[%clk 0:02:55]} 5. c3 {[%clk 0:02:46.3]} 5...
Bf5 {[%clk 0:02:54.6]} 6. Ngf3 {[%clk 0:02:36.2]} 6... e6 {[%clk 0:02:54.4]} 7.
Be2 {[%clk 0:02:35]} 7... Be7 {[%clk 0:02:51]} 8. h3 {[%clk 0:02:34.6]} 8... h6
{[%clk 0:02:49.9]} 9. O-O {[%clk 0:02:34.7]} 9... O-O {[%clk 0:02:49.8]} 10.
dxc5 {[%clk 0:02:10.3]} 10... Bxc5 {[%clk 0:02:42.5]} 11. c4 {[%clk 0:02:09.8]}
11... dxc4 {[%clk 0:02:15.5]} 12. Nxc4 {[%clk 0:02:06.9]} 12... Qxd1 {[%clk
0:02:02.6]} 13. Rfxd1 {[%clk 0:02:05]} 13... Rfd8 {[%clk 0:02:02.8]} 14. a3
{[%clk 0:02:01.4]} 14... a6 {[%clk 0:01:58.4]} 15. Bc7 {[%clk 0:01:57.9]} 15...
Rxd1+ {[%clk 0:01:54.3]} 16. Rxd1 {[%clk 0:01:58.8]} 16... Rc8 {[%clk
0:01:53.1]} 17. Bd6 {[%clk 0:01:57.1]} 17... Ba7 {[%clk 0:01:48.1]} 18. Bf4
{[%clk 0:01:32.6]} 18... Ne4 {[%clk 0:01:37.1]} 19. Nfe5 {[%clk 0:01:24.3]}
19... Nxe5 {[%clk 0:01:24]} 20. Bxe5 {[%clk 0:01:22.4]} 20... b5 {[%clk
0:01:19]} 21. Rd7 {[%clk 0:01:15.1]} 21... Bb8 {[%clk 0:00:45.7]} 22. Bxb8
{[%clk 0:01:13.5]} 22... Rxb8 {[%clk 0:00:45.8]} 23. Ne5 {[%clk 0:01:13.7]}
23... f6 {[%clk 0:00:36.9]} 24. Nc6 {[%clk 0:01:12.6]} 24... Rb6 {[%clk
0:00:35.1]} 25. Ne7+ {[%clk 0:01:11.4]} 25... Kh7 {[%clk 0:00:35.3]} 26. g4
{[%clk 0:01:08.5]} 26... Bg6 {[%clk 0:00:34.6]} 27. Nxg6 {[%clk 0:01:06]} 27...
Kxg6 {[%clk 0:00:34.7]} 28. Bd3 {[%clk 0:01:06.3]} 28... f5 {[%clk 0:00:35]} 29.
b4 {[%clk 0:00:58.1]} 29... Rd6 {[%clk 0:00:34.8]} 30. Rxd6 {[%clk 0:00:53.4]}
30... Nxd6 {[%clk 0:00:34.8]} 31. Kg2 {[%clk 0:00:53.7]} 31... Kf6 {[%clk
0:00:34.4]} 32. Kf3 {[%clk 0:00:52.8]} 32... g6 {[%clk 0:00:32.9]} 33. Ke2
{[%clk 0:00:47.6]} 33... e5 {[%clk 0:00:33]} 34. Kd2 {[%clk 0:00:44.9]} 34...
Ke6 {[%clk 0:00:33.1]} 35. Kc3 {[%clk 0:00:44.8]} 35... Kd5 {[%clk 0:00:33.6]}
36. a4 {[%clk 0:00:44.7]} 36... Ne4+ {[%clk 0:00:30.5]} 37. Kb2 {[%clk
0:00:37.1]} 37... Nxf2 {[%clk 0:00:25.8]} 38. Bf1 {[%clk 0:00:37]} 38... bxa4
{[%clk 0:00:24.1]} 39. Ka3 {[%clk 0:00:37.1]} 39... fxg4 {[%clk 0:00:20.7]} 40.
hxg4 {[%clk 0:00:36.6]} 40... Nxg4 {[%clk 0:00:20.8]} 41. Bxa6 {[%clk
0:00:36.8]} 41... Nxe3 {[%clk 0:00:19.1]} 42. Kxa4 {[%clk 0:00:36.7]} 42... Kc6
{[%clk 0:00:19.1]} 43. Bd3 {[%clk 0:00:35.9]} 43... g5 {[%clk 0:00:18.9]} 44.
Ka5 {[%clk 0:00:36.4]} 44... Kb7 {[%clk 0:00:18.3]} 45. Be4+ {[%clk 0:00:36.2]}
45... Kb8 {[%clk 0:00:18.6]} 46. Kb6 {[%clk 0:00:35.8]} 46... g4 {[%clk
0:00:18.8]} 47. Kc5 {[%clk 0:00:36.4]} 47... g3 {[%clk 0:00:19.2]} 48. Kd6
{[%clk 0:00:37]} 48... g2 {[%clk 0:00:19.7]} 49. Bxg2 {[%clk 0:00:36.8]} 49...
Nxg2 {[%clk 0:00:20.6]} 50. Kxe5 {[%clk 0:00:37.7]} 50... h5 {[%clk 0:00:20.2]}
51. Kf5 {[%clk 0:00:36.7]} 51... Kb7 {[%clk 0:00:18.6]} 52. Kg5 {[%clk
0:00:36.4]} 52... h4 {[%clk 0:00:18.3]} 53. Kg4 {[%clk 0:00:36.7]} 53... Kb6
{[%clk 0:00:17.9]} 54. Kh3 {[%clk 0:00:37]} 54... Kb5 {[%clk 0:00:18.1]} 55.
Kxg2 {[%clk 0:00:37.4]} 55... Kxb4 {[%clk 0:00:19]} 56. Kh3 {[%clk 0:00:38.2]}
56... Kc4 {[%clk 0:00:16]} 57. Kxh4 {[%clk 0:00:39.1]} 1/2-1/2

[Event "*** SCC Grand Prix: Titled Tuesday Blitz"]
[Site "Chess.com"]
[Date "2020.08.04"]
[Round "1"]
[White "BlackBoarder"]
[Black "LubovMarkelova"]
[Result "1-0"]
[WhiteElo "2573"]
[BlackElo "2238"]
[TimeControl "180+1"]
[EndTime "13:52:49 PDT"]
[Termination "BlackBoarder won on time"]

1. e4 {[%clk 0:03:00]} 1... e5 {[%clk 0:02:59.4]} 2. Nf3 {[%clk 0:02:58.4]} 2...
Nc6 {[%clk 0:03:00]} 3. d4 {[%clk 0:02:58.4]} 3... exd4 {[%clk 0:02:59.7]} 4.
Bc4 {[%clk 0:02:58.8]} 4... Nf6 {[%clk 0:02:57.2]} 5. O-O {[%clk 0:02:58.7]}
5... Nxe4 {[%clk 0:02:51.9]} 6. Re1 {[%clk 0:02:58.6]} 6... d5 {[%clk
0:02:52.1]} 7. Bxd5 {[%clk 0:02:59.1]} 7... Qxd5 {[%clk 0:02:51.9]} 8. Nc3
{[%clk 0:02:59.4]} 8... Qa5 {[%clk 0:02:50.1]} 9. Nxe4 {[%clk 0:02:59.6]} 9...
Be6 {[%clk 0:02:50.3]} 10. Neg5 {[%clk 0:02:59.4]} 10... O-O-O {[%clk
0:02:49.5]} 11. Nxe6 {[%clk 0:02:59.1]} 11... fxe6 {[%clk 0:02:49.7]} 12. Rxe6
{[%clk 0:02:59.7]} 12... Bd6 {[%clk 0:02:42.6]} 13. Bg5 {[%clk 0:02:58.9]} 13...
Rde8 {[%clk 0:02:39.3]} 14. Qe2 {[%clk 0:02:58.3]} 14... Rxe6 {[%clk 0:02:37.3]}
15. Qxe6+ {[%clk 0:02:57.8]} 15... Kb8 {[%clk 0:02:37.9]} 16. Bd2 {[%clk
0:02:53.9]} 16... Bb4 {[%clk 0:02:30.4]} 17. Bf4 {[%clk 0:02:47.7]} 17... Rd8
{[%clk 0:02:00.9]} 18. a3 {[%clk 0:02:39.9]} 18... Bf8 {[%clk 0:01:53.1]} 19.
Rd1 {[%clk 0:02:34.8]} 19... Qd5 {[%clk 0:01:48.8]} 20. Qxd5 {[%clk 0:02:11.2]}
20... Rxd5 {[%clk 0:01:48.2]} 21. Be3 {[%clk 0:02:08.7]} 21... Rb5 {[%clk
0:01:22.3]} 22. Nxd4 {[%clk 0:02:02.9]} 22... Rxb2 {[%clk 0:01:18.4]} 23. Nxc6+
{[%clk 0:01:09.9]} 23... bxc6 {[%clk 0:01:18]} 24. a4 {[%clk 0:01:10.1]} 24...
Kb7 {[%clk 0:01:05.8]} 25. Kf1 {[%clk 0:00:38.5]} 25... Rxc2 {[%clk 0:00:58.6]}
26. Rd7 {[%clk 0:00:38.4]} 26... Bd6 {[%clk 0:00:12.1]} 27. Rxg7 {[%clk
0:00:35.1]} 27... c5 {[%clk 0:00:12.3]} 28. Rxh7 {[%clk 0:00:25.3]} 28... c4
{[%clk 0:00:12.4]} 29. Rh5 {[%clk 0:00:11.1]} 29... a6 {[%clk 0:00:11.4]} 30.
Rd5 {[%clk 0:00:08.5]} 30... Ra2 {[%clk 0:00:09.1]} 31. Ke1 {[%clk 0:00:06.6]}
31... Kc6 {[%clk 0:00:07.4]} 32. Rd4 {[%clk 0:00:06]} 32... Rxa4 {[%clk
0:00:06]} 33. h4 {[%clk 0:00:06.3]} 33... Bb4+ {[%clk 0:00:04.7]} 34. Kd1 {[%clk
0:00:06.1]} 34... Bc5 {[%clk 0:00:04.8]} 35. Re4 {[%clk 0:00:04.5]} 35... Ra1+
{[%clk 0:00:03.8]} 36. Kc2 {[%clk 0:00:04.1]} 36... Kd5 {[%clk 0:00:03.5]} 37.
Re8 {[%clk 0:00:02.8]} 37... Bxe3 {[%clk 0:00:02.3]} 38. Rxe3 {[%clk 0:00:02.5]}
38... Ra2+ {[%clk 0:00:02.7]} 39. Kc3 {[%clk 0:00:02.9]} 39... Rxf2 {[%clk
0:00:03.6]} 40. g4 {[%clk 0:00:03.2]} 40... Rf4 {[%clk 0:00:02.8]} 41. Rg3
{[%clk 0:00:02.9]} 41... a5 {[%clk 0:00:01.2]} 42. h5 {[%clk 0:00:03.2]} 1-0

[Event "*** SCC Grand Prix: Titled Tuesday Blitz"]
[Site "Chess.com"]
[Date "2020.08.04"]
[Round "1"]
[White "vesalhamedinia"]
[Black "Zubrrr"]
[Result "0-1"]
[WhiteElo "2289"]
[BlackElo "2625"]
[TimeControl "180+1"]
[EndTime "13:53:08 PDT"]
[Termination "Zubrrr won by checkmate"]

1. d4 {[%clk 0:03:00.4]} 1... f5 {[%clk 0:02:59.5]} 2. c4 {[%clk 0:03:00.4]}
2... Nf6 {[%clk 0:02:59.7]} 3. Nc3 {[%clk 0:03:00.8]} 3... g6 {[%clk 0:03:00.2]}
4. Nf3 {[%clk 0:03:01.4]} 4... Bg7 {[%clk 0:03:00.6]} 5. Bf4 {[%clk 0:03:02.1]}
5... O-O {[%clk 0:03:01.1]} 6. e3 {[%clk 0:03:02.8]} 6... d6 {[%clk 0:03:01.6]}
7. h3 {[%clk 0:03:03.5]} 7... e6 {[%clk 0:03:00.6]} 8. Be2 {[%clk 0:03:03.4]}
8... Nbd7 {[%clk 0:03:00.3]} 9. O-O {[%clk 0:03:03.7]} 9... Qe7 {[%clk
0:03:00.1]} 10. Nb5 {[%clk 0:03:00.8]} 10... Ne8 {[%clk 0:02:49.7]} 11. c5
{[%clk 0:02:41.2]} 11... e5 {[%clk 0:01:52.5]} 12. Bg5 {[%clk 0:02:40.5]} 12...
Ndf6 {[%clk 0:01:50.8]} 13. cxd6 {[%clk 0:02:38.9]} 13... cxd6 {[%clk
0:01:51.7]} 14. Qb3+ {[%clk 0:02:20.7]} 14... Kh8 {[%clk 0:01:29]} 15. Qa3
{[%clk 0:02:03.7]} 15... e4 {[%clk 0:01:13.4]} 16. Nd2 {[%clk 0:01:53.3]} 16...
Bd7 {[%clk 0:01:07.4]} 17. Nc3 {[%clk 0:01:33.5]} 17... Be6 {[%clk 0:00:54.9]}
18. d5 {[%clk 0:01:10.5]} 18... Bg8 {[%clk 0:00:47.8]} 19. Nc4 {[%clk
0:01:04.3]} 19... a6 {[%clk 0:00:45.5]} 20. Nb6 {[%clk 0:01:02.1]} 20... Rd8
{[%clk 0:00:45.3]} 21. Rfd1 {[%clk 0:00:59.5]} 21... h6 {[%clk 0:00:45.2]} 22.
Bf4 {[%clk 0:00:54]} 22... g5 {[%clk 0:00:45.4]} 23. Bh2 {[%clk 0:00:53.7]}
23... Bh7 {[%clk 0:00:40.3]} 24. Rac1 {[%clk 0:00:45]} 24... Nd7 {[%clk
0:00:20.1]} 25. Nc4 {[%clk 0:00:39.3]} 25... f4 {[%clk 0:00:18.3]} 26. Bg4
{[%clk 0:00:33.7]} 26... Ne5 {[%clk 0:00:12.1]} 27. Nxe5 {[%clk 0:00:29.5]}
27... Bxe5 {[%clk 0:00:13]} 28. Qb4 {[%clk 0:00:21.5]} 28... Nf6 {[%clk
0:00:12.7]} 29. Be6 {[%clk 0:00:21]} 29... Qg7 {[%clk 0:00:09.5]} 30. Re1 {[%clk
0:00:14.1]} 30... h5 {[%clk 0:00:09.1]} 31. exf4 {[%clk 0:00:12.4]} 31... gxf4
{[%clk 0:00:09.7]} 32. h4 {[%clk 0:00:07.8]} 32... f3 {[%clk 0:00:08.6]} 33. g3
{[%clk 0:00:08.3]} 33... Rde8 {[%clk 0:00:04.8]} 34. Qb6 {[%clk 0:00:07.7]}
34... Re7 {[%clk 0:00:04.6]} 35. Qe3 {[%clk 0:00:07.2]} 35... Ng4 {[%clk
0:00:04.4]} 36. Bxg4 {[%clk 0:00:07.3]} 36... hxg4 {[%clk 0:00:04.8]} 37. Nxe4
{[%clk 0:00:08.2]} 37... Bxb2 {[%clk 0:00:04.9]} 38. Rc2 {[%clk 0:00:08.1]}
38... Rxe4 {[%clk 0:00:05]} 39. Qxe4 {[%clk 0:00:08.5]} 39... Bxe4 {[%clk
0:00:04.7]} 40. Rxe4 {[%clk 0:00:09.4]} 40... Be5 {[%clk 0:00:05.2]} 41. Kh1
{[%clk 0:00:09.7]} 41... Rg8 {[%clk 0:00:05.4]} 42. Bg1 {[%clk 0:00:09.7]} 42...
Qf7 {[%clk 0:00:05.7]} 43. Rd2 {[%clk 0:00:09.4]} 43... Qf5 {[%clk 0:00:05.9]}
44. Rc4 {[%clk 0:00:09.5]} 44... Qb1 {[%clk 0:00:05.6]} 45. Kh2 {[%clk
0:00:09.8]} 45... Qb6 {[%clk 0:00:04]} 46. Rdc2 {[%clk 0:00:09.2]} 46... Qd8
{[%clk 0:00:03.9]} 47. Rc7 {[%clk 0:00:09.2]} 47... b5 {[%clk 0:00:04.4]} 48.
Ra7 {[%clk 0:00:09.3]} 48... Qxh4# {[%clk 0:00:04.6]} 0-1

[Event "*** SCC Grand Prix: Titled Tuesday Blitz"]
[Site "Chess.com"]
[Date "2020.08.04"]
[Round "1"]
[White "Artem_Sadovsky"]
[Black "mishikomchedlishvili"]
[Result "0-1"]
[WhiteElo "2393"]
[BlackElo "2759"]
[TimeControl "180+1"]
[EndTime "13:53:10 PDT"]
[Termination "mishikomchedlishvili won by checkmate"]

1. Nf3 {[%clk 0:02:59]} 1... Nf6 {[%clk 0:02:58.7]} 2. c4 {[%clk 0:02:58.4]}
2... g6 {[%clk 0:02:58.2]} 3. b3 {[%clk 0:02:58.7]} 3... Bg7 {[%clk 0:02:55.9]}
4. Bb2 {[%clk 0:02:59.1]} 4... O-O {[%clk 0:02:53.8]} 5. g3 {[%clk 0:02:59.3]}
5... c6 {[%clk 0:02:53.8]} 6. Bg2 {[%clk 0:02:59.8]} 6... d5 {[%clk 0:02:54.4]}
7. O-O {[%clk 0:03:00.3]} 7... Bg4 {[%clk 0:02:53.6]} 8. d3 {[%clk 0:02:59.6]}
8... Bxf3 {[%clk 0:02:52.2]} 9. Bxf3 {[%clk 0:02:59.2]} 9... Nbd7 {[%clk
0:02:52.3]} 10. Nd2 {[%clk 0:02:59]} 10... Re8 {[%clk 0:02:48.7]} 11. Qc2 {[%clk
0:02:55.2]} 11... e6 {[%clk 0:02:47.5]} 12. Rad1 {[%clk 0:02:48.7]} 12... h5
{[%clk 0:02:45.4]} 13. e4 {[%clk 0:02:47.5]} 13... dxe4 {[%clk 0:02:43]} 14.
Nxe4 {[%clk 0:02:46.8]} 14... Nxe4 {[%clk 0:02:33.5]} 15. Bxe4 {[%clk 0:02:36]}
15... Bxb2 {[%clk 0:02:29.2]} 16. Qxb2 {[%clk 0:02:36.9]} 16... Qf6 {[%clk
0:02:28.3]} 17. d4 {[%clk 0:02:31.5]} 17... Rad8 {[%clk 0:02:27.1]} 18. Bg2
{[%clk 0:02:24.2]} 18... h4 {[%clk 0:02:20.4]} 19. Rfe1 {[%clk 0:02:24]} 19...
Nb6 {[%clk 0:02:16.7]} 20. Re4 {[%clk 0:02:02.2]} 20... hxg3 {[%clk 0:02:13.7]}
21. hxg3 {[%clk 0:02:03.1]} 21... Rd7 {[%clk 0:02:12.7]} 22. Qe2 {[%clk
0:01:56.4]} 22... Red8 {[%clk 0:02:12.4]} 23. Rf4 {[%clk 0:01:56.8]} 23... Qg7
{[%clk 0:02:11.7]} 24. c5 {[%clk 0:01:18.1]} 24... Nd5 {[%clk 0:02:09.4]} 25.
Bxd5 {[%clk 0:01:14.5]} 25... Rxd5 {[%clk 0:02:09.3]} 26. Qc4 {[%clk 0:00:50.4]}
26... e5 {[%clk 0:02:05.8]} 27. Re4 {[%clk 0:00:50]} 27... Rxd4 {[%clk
0:01:48.9]} 28. Rdxd4 {[%clk 0:00:50]} 28... exd4 {[%clk 0:01:48.8]} 29. Qe2
{[%clk 0:00:43.1]} 29... Qf6 {[%clk 0:01:35.1]} 30. Re8+ {[%clk 0:00:40.7]}
30... Kg7 {[%clk 0:01:26.1]} 31. Rxd8 {[%clk 0:00:36.3]} 31... Qxd8 {[%clk
0:01:25.2]} 32. Qe5+ {[%clk 0:00:37.2]} 32... Kg8 {[%clk 0:01:24]} 33. Kf1
{[%clk 0:00:33]} 33... b6 {[%clk 0:00:50.9]} 34. Ke2 {[%clk 0:00:26.7]} 34...
bxc5 {[%clk 0:00:48.3]} 35. Qxc5 {[%clk 0:00:27.6]} 35... Qb6 {[%clk 0:00:48.3]}
36. Qc4 {[%clk 0:00:16.9]} 36... c5 {[%clk 0:00:44.5]} 37. a4 {[%clk 0:00:13.1]}
37... Qe6+ {[%clk 0:00:29.7]} 38. Qxe6 {[%clk 0:00:11.4]} 38... fxe6 {[%clk
0:00:29.4]} 39. a5 {[%clk 0:00:07.9]} 39... e5 {[%clk 0:00:27.5]} 40. Kd3 {[%clk
0:00:07.6]} 40... Kf7 {[%clk 0:00:26.8]} 41. f4 {[%clk 0:00:03.8]} 41... Ke6
{[%clk 0:00:22.5]} 42. fxe5 {[%clk 0:00:02.9]} 42... Kxe5 {[%clk 0:00:22.5]} 43.
Kc4 {[%clk 0:00:01.6]} 43... Ke4 {[%clk 0:00:19.9]} 44. Kxc5 {[%clk 0:00:02.2]}
44... d3 {[%clk 0:00:20.3]} 45. Kc6 {[%clk 0:00:02.9]} 45... d2 {[%clk
0:00:20.4]} 46. Kb7 {[%clk 0:00:03.8]} 46... d1=Q {[%clk 0:00:20.8]} 47. Kxa7
{[%clk 0:00:04.7]} 47... Qxb3 {[%clk 0:00:20.8]} 48. a6 {[%clk 0:00:05.3]} 48...
Kd5 {[%clk 0:00:20.8]} 49. Ka8 {[%clk 0:00:05.3]} 49... Kc6 {[%clk 0:00:20.6]}
50. g4 {[%clk 0:00:01.4]} 50... Kc7 {[%clk 0:00:20.3]} 51. a7 {[%clk 0:00:01.3]}
51... Qd5# {[%clk 0:00:09.8]} 0-1

[Event "*** SCC Grand Prix: Titled Tuesday Blitz"]
[Site "Chess.com"]
[Date "2020.08.04"]
[Round "1"]
[White "DariaVoit"]
[Black "VladaSviridova"]
[Result "0-1"]
[WhiteElo "2534"]
[BlackElo "2180"]
[TimeControl "180+1"]
[EndTime "13:53:13 PDT"]
[Termination "VladaSviridova won by resignation"]

1. d4 {[%clk 0:02:56.7]} 1... d5 {[%clk 0:03:00.1]} 2. Nf3 {[%clk 0:02:56.7]}
2... Nf6 {[%clk 0:02:59.9]} 3. c4 {[%clk 0:02:57.3]} 3... c6 {[%clk 0:03:00.1]}
4. e3 {[%clk 0:02:55.5]} 4... Bf5 {[%clk 0:02:59.2]} 5. Nc3 {[%clk 0:02:55.7]}
5... e6 {[%clk 0:02:59.3]} 6. Nh4 {[%clk 0:02:55.8]} 6... Be4 {[%clk 0:02:59.6]}
7. f3 {[%clk 0:02:56.5]} 7... Bg6 {[%clk 0:02:59.9]} 8. Bd2 {[%clk 0:02:57]}
8... Be7 {[%clk 0:02:59.6]} 9. Qb3 {[%clk 0:02:57.1]} 9... Qc7 {[%clk
0:02:58.8]} 10. g3 {[%clk 0:02:55.1]} 10... O-O {[%clk 0:02:52.6]} 11. Nxg6
{[%clk 0:02:54]} 11... hxg6 {[%clk 0:02:52.2]} 12. Kf2 {[%clk 0:02:49.2]} 12...
dxc4 {[%clk 0:02:28.2]} 13. Bxc4 {[%clk 0:02:48.3]} 13... Nbd7 {[%clk
0:02:28.1]} 14. Rac1 {[%clk 0:02:37.7]} 14... Qb6 {[%clk 0:02:12]} 15. Rhd1
{[%clk 0:02:29.8]} 15... Rfd8 {[%clk 0:02:02.7]} 16. Na4 {[%clk 0:02:05.6]}
16... Qxb3 {[%clk 0:02:01]} 17. Bxb3 {[%clk 0:02:06.5]} 17... Nb6 {[%clk
0:01:37.6]} 18. Ba5 {[%clk 0:01:56.7]} 18... Nfd7 {[%clk 0:01:30.2]} 19. Nc5
{[%clk 0:01:50.5]} 19... Nxc5 {[%clk 0:01:17.8]} 20. dxc5 {[%clk 0:01:45.2]}
20... Rxd1 {[%clk 0:01:17.6]} 21. Rxd1 {[%clk 0:01:02.1]} 21... Bxc5 {[%clk
0:01:11.7]} 22. Bxb6 {[%clk 0:01:02]} 22... Bxb6 {[%clk 0:01:05.2]} 23. Rd7
{[%clk 0:01:00.7]} 23... Rd8 {[%clk 0:01:02.4]} 24. Rxd8+ {[%clk 0:00:50.8]}
24... Bxd8 {[%clk 0:01:02.4]} 25. e4 {[%clk 0:00:47.3]} 25... Kf8 {[%clk
0:01:01.6]} 26. Ke3 {[%clk 0:00:45.5]} 26... Ke7 {[%clk 0:01:01]} 27. Kd3 {[%clk
0:00:44.1]} 27... b5 {[%clk 0:01:00.3]} 28. a4 {[%clk 0:00:37.8]} 28... Bb6
{[%clk 0:00:57]} 29. Bd1 {[%clk 0:00:35.2]} 29... a6 {[%clk 0:00:54.5]} 30. Bc2
{[%clk 0:00:31.8]} 30... Bg1 {[%clk 0:00:53]} 31. Ke2 {[%clk 0:00:31.8]} 31...
Kd6 {[%clk 0:00:51.1]} 32. h3 {[%clk 0:00:27.1]} 32... Bd4 {[%clk 0:00:49.6]}
33. b3 {[%clk 0:00:21.7]} 33... Kc5 {[%clk 0:00:49.6]} 34. Kd3 {[%clk
0:00:21.3]} 34... Bf2 {[%clk 0:00:49.5]} 35. g4 {[%clk 0:00:20.3]} 35... Bg3
{[%clk 0:00:49.6]} 36. Bd1 {[%clk 0:00:20.4]} 36... Bf4 {[%clk 0:00:47.1]} 37.
Bc2 {[%clk 0:00:20.3]} 37... Kb4 {[%clk 0:00:45.4]} 38. Bd1 {[%clk 0:00:17.5]}
38... c5 {[%clk 0:00:45.4]} 39. axb5 {[%clk 0:00:16.6]} 39... axb5 {[%clk
0:00:45.7]} 40. Kc2 {[%clk 0:00:11.8]} 40... c4 {[%clk 0:00:36.1]} 41. bxc4
{[%clk 0:00:07.1]} 41... bxc4 {[%clk 0:00:32]} 42. Be2 {[%clk 0:00:07.3]} 42...
Kc5 {[%clk 0:00:30.6]} 43. h4 {[%clk 0:00:02.1]} 43... Kd4 {[%clk 0:00:26.1]}
44. h5 {[%clk 0:00:02.7]} 44... gxh5 {[%clk 0:00:22]} 45. gxh5 {[%clk
0:00:03.6]} 45... e5 {[%clk 0:00:20.9]} 46. Bd1 {[%clk 0:00:03.5]} 46... Ke3
{[%clk 0:00:20]} 47. Kc3 {[%clk 0:00:03.8]} 47... Kf2 {[%clk 0:00:19.3]} 48.
Kxc4 {[%clk 0:00:04.1]} 48... Ke1 {[%clk 0:00:19.3]} 49. Bc2 {[%clk 0:00:04.3]}
49... Ke2 {[%clk 0:00:19.4]} 50. Kd5 {[%clk 0:00:03.1]} 50... Kxf3 {[%clk
0:00:19.6]} 51. Ba4 {[%clk 0:00:03.4]} 51... Kg4 {[%clk 0:00:19.3]} 52. Be8
{[%clk 0:00:03.9]} 52... Kxh5 {[%clk 0:00:18.3]} 53. Bxf7+ {[%clk 0:00:04.5]}
53... Kg4 {[%clk 0:00:18.4]} 54. Kc4 {[%clk 0:00:04.4]} 54... g5 {[%clk
0:00:18.7]} 55. Kd3 {[%clk 0:00:04.4]} 55... Kf3 {[%clk 0:00:17.4]} 56. Bb3
{[%clk 0:00:04.9]} 56... g4 {[%clk 0:00:17.1]} 57. Bd1+ {[%clk 0:00:05.5]} 57...
Kg3 {[%clk 0:00:17.4]} 58. Be2 {[%clk 0:00:04.7]} 58... Kh3 {[%clk 0:00:16.6]}
59. Bd1 {[%clk 0:00:04.8]} 59... g3 {[%clk 0:00:17]} 60. Bf3 {[%clk 0:00:05]}
60... g2 {[%clk 0:00:16.5]} 0-1

[Event "*** SCC Grand Prix: Titled Tuesday Blitz"]
[Site "Chess.com"]
[Date "2020.08.04"]
[Round "1"]
[White "akretchetov"]
[Black "GoltsevDmitry2000"]
[Result "0-1"]
[WhiteElo "2270"]
[BlackElo "2618"]
[TimeControl "180+1"]
[EndTime "13:53:14 PDT"]
[Termination "GoltsevDmitry2000 won by checkmate"]

1. d4 {[%clk 0:02:55.5]} 1... d5 {[%clk 0:02:58.6]} 2. c4 {[%clk 0:02:52.8]}
2... c6 {[%clk 0:02:58]} 3. Nf3 {[%clk 0:02:50.4]} 3... Nf6 {[%clk 0:02:57.7]}
4. Nc3 {[%clk 0:02:49.5]} 4... dxc4 {[%clk 0:02:58]} 5. a4 {[%clk 0:02:40.7]}
5... a5 {[%clk 0:02:57]} 6. e4 {[%clk 0:02:35.5]} 6... Bg4 {[%clk 0:02:55.2]} 7.
Be3 {[%clk 0:02:33.8]} 7... e6 {[%clk 0:02:53.7]} 8. Bxc4 {[%clk 0:02:33]} 8...
Bb4 {[%clk 0:02:53.7]} 9. Qd3 {[%clk 0:02:23.1]} 9... Nbd7 {[%clk 0:02:52.2]}
10. e5 {[%clk 0:02:18.1]} 10... Nd5 {[%clk 0:02:48.1]} 11. Nd2 {[%clk
0:02:14.6]} 11... Bf5 {[%clk 0:02:45.1]} 12. Nce4 {[%clk 0:02:10.1]} 12... Nxe3
{[%clk 0:02:07.8]} 13. Qxe3 {[%clk 0:02:09.6]} 13... Nxe5 {[%clk 0:02:07.4]} 14.
Be2 {[%clk 0:02:03.6]} 14... Ng4 {[%clk 0:01:49.1]} 15. Bxg4 {[%clk 0:01:59.4]}
15... Bxg4 {[%clk 0:01:50]} 16. O-O {[%clk 0:01:57]} 16... Qc7 {[%clk
0:01:45.8]} 17. Nc4 {[%clk 0:01:54.3]} 17... O-O-O {[%clk 0:01:41.6]} 18. Rac1
{[%clk 0:01:49.5]} 18... Rd5 {[%clk 0:01:39.3]} 19. Ne5 {[%clk 0:01:46.2]} 19...
Bf5 {[%clk 0:01:33.6]} 20. Nc3 {[%clk 0:01:43]} 20... Bxc3 {[%clk 0:01:31.3]}
21. bxc3 {[%clk 0:01:41.8]} 21... f6 {[%clk 0:01:29.2]} 22. Nf3 {[%clk
0:01:40.6]} 22... Rhd8 {[%clk 0:01:27.7]} 23. h3 {[%clk 0:01:39.9]} 23... Kb8
{[%clk 0:01:17.6]} 24. c4 {[%clk 0:01:39.5]} 24... R5d7 {[%clk 0:01:15.6]} 25.
Rfe1 {[%clk 0:01:39.6]} 25... Re8 {[%clk 0:01:06.5]} 26. Qc3 {[%clk 0:01:39.4]}
26... Bg6 {[%clk 0:01:04.3]} 27. Re2 {[%clk 0:01:37.8]} 27... Bh5 {[%clk
0:00:59.8]} 28. g4 {[%clk 0:01:34.2]} 28... Bf7 {[%clk 0:00:59.3]} 29. Rb2
{[%clk 0:01:33]} 29... e5 {[%clk 0:00:55.5]} 30. dxe5 {[%clk 0:01:31.3]} 30...
fxe5 {[%clk 0:00:56.4]} 31. Rcb1 {[%clk 0:01:29.8]} 31... e4 {[%clk 0:00:52.2]}
32. Nd4 {[%clk 0:01:23.8]} 32... Qd6 {[%clk 0:00:49.2]} 33. Nf5 {[%clk
0:01:18.8]} 33... Qe5 {[%clk 0:00:41.1]} 34. Qe3 {[%clk 0:01:11.8]} 34... Bxc4
{[%clk 0:00:37.3]} 35. Qb6 {[%clk 0:01:05.6]} 35... Rc8 {[%clk 0:00:31.6]} 36.
Ne3 {[%clk 0:01:03.8]} 36... Bd3 {[%clk 0:00:30.8]} 37. Rc1 {[%clk 0:01:03.1]}
37... Qd4 {[%clk 0:00:29.8]} 38. Qb3 {[%clk 0:00:51.2]} 38... Ka8 {[%clk
0:00:24]} 39. Nf5 {[%clk 0:00:50.2]} 39... Qa7 {[%clk 0:00:22.1]} 40. Qe6 {[%clk
0:00:46.7]} 40... Rdc7 {[%clk 0:00:19.8]} 41. Nd6 {[%clk 0:00:46.3]} 41... Rf8
{[%clk 0:00:19.3]} 42. Nf5 {[%clk 0:00:41]} 42... g6 {[%clk 0:00:18.8]} 43. Ne3
{[%clk 0:00:39.2]} 43... Rcf7 {[%clk 0:00:18.3]} 44. Qd6 {[%clk 0:00:36.2]}
44... Rc8 {[%clk 0:00:13.2]} 45. Rc3 {[%clk 0:00:35.6]} 45... Qa6 {[%clk
0:00:09.5]} 46. Qc5 {[%clk 0:00:34.7]} 46... Qa7 {[%clk 0:00:08.3]} 47. Qd6
{[%clk 0:00:34.5]} 47... Rff8 {[%clk 0:00:07.4]} 48. Rcb3 {[%clk 0:00:33.4]}
48... Rfd8 {[%clk 0:00:07.5]} 49. Qe7 {[%clk 0:00:32.7]} 49... Ba6 {[%clk
0:00:07.8]} 50. Kh2 {[%clk 0:00:31.1]} 50... Qb8+ {[%clk 0:00:07.4]} 51. Kg2
{[%clk 0:00:30.2]} 51... g5 {[%clk 0:00:06.8]} 52. Nf5 {[%clk 0:00:28.6]} 52...
Re8 {[%clk 0:00:04.9]} 53. Qc5 {[%clk 0:00:27.8]} 53... Rcd8 {[%clk 0:00:05.2]}
54. Qxa5 {[%clk 0:00:27.4]} 54... Qe5 {[%clk 0:00:05.2]} 55. Rxb7 {[%clk
0:00:26]} 55... Qxa5 {[%clk 0:00:04.7]} 56. Rc7 {[%clk 0:00:26]} 56... Qxc7
{[%clk 0:00:04.7]} 57. Ng7 {[%clk 0:00:26]} 57... Bb7 {[%clk 0:00:04.8]} 58. Nf5
{[%clk 0:00:25.9]} 58... e3 {[%clk 0:00:04.5]} 59. Kf1 {[%clk 0:00:26.4]} 59...
c5 {[%clk 0:00:05.4]} 60. Ke1 {[%clk 0:00:26.6]} 60... exf2+ {[%clk 0:00:05.4]}
61. Kxf2 {[%clk 0:00:26.8]} 61... Qf4+ {[%clk 0:00:06]} 62. Kg1 {[%clk
0:00:26.2]} 62... Re6 {[%clk 0:00:05.9]} 63. a5 {[%clk 0:00:24.9]} 63... Ra6
{[%clk 0:00:06.2]} 64. Rc2 {[%clk 0:00:24.2]} 64... Rxa5 {[%clk 0:00:06.1]} 65.
Rb2 {[%clk 0:00:24.1]} 65... Ra1+ {[%clk 0:00:06.4]} 66. Rb1 {[%clk 0:00:24.1]}
66... Rxb1# {[%clk 0:00:06.9]} 0-1